Cogmind - Beta 13 @@@ ROGUE MODE // 2024.07.24 @ 00:30:42 Player: APerTAS Result: Destroyed by Y-45 Defender with Heavy Assault Rifle Performance ------------- Evolutions (2) 1000 Regions Visited (5) 1000 Robots Destroyed (16) 80 Value Destroyed (351) 351 Prototype IDs (23) 460 Alien Tech Used (0) 0 Bonus (300) 300 TOTAL SCORE: 3191 Bonus ------- Aligned with FarCom 300 Cogmind --------- Core Integrity 0/550 Matter 300/300 Energy 100/100 System Corruption 2% Temperature Cool (18) Movement Core (200) Ox3 Location -8/Materials Parts ------- > --- POWER (1) -------- (None) > --- PROPULSION (3) --- (None) > --- UTILITY (5) ------ Medium Storage Unit > --- WEAPON (2) ------- (None) > --- INVENTORY (10) --- Light Ion Engine Small Storage Unit High-capacity Matter Pod (200) Peak State ------------ > --- POWER ------------ Ion Engine > --- PROPULSION ------- Light Treads Light Treads Light Treads > --- UTILITY ---------- Heat Sink Medium Storage Unit Targeting Computer Light Armor Plating > --- WEAPON ----------- EM Pulse Gun Grenade Launcher > --- INVENTORY -------- Light Ion Engine Small Storage Unit High-capacity Matter Pod [Rating: 10] Favorites ----------- Power Light Nuclear Core Engine Ion Engine Power Core Light Nuclear Core Propulsion Light Treads Treads Light Treads Utility Small Storage Unit Device Heat Sink Storage Small Storage Unit Processor Targeting Computer Protection Light Armor Plating Weapon Beam Cannon Energy Gun EM Pulse Gun Energy Cannon Beam Cannon Ballistic Gun Assault Rifle Launcher Grenade Launcher Build | -11 -10 -10 -10 -9 -8 ------- Run | Yrd Mat Min Exi Min Mat Slots Evolved 4 | . . . . . 4 Power . | . . . . . . Propulsion 1 | . . . . . 1 Utility 3 | . . . . . 3 Weapon . | . . . . . . Parts Attached 21 | 6 3 5 1 2 4 Power 4 | 1 . 2 . . 1 Engine 3 | 1 . 1 . . 1 Core 1 | . . 1 . . . Reactor . | . . . . . . Propulsion 5 | 2 . 2 . . 1 Treads 5 | 2 . 2 . . 1 Leg . | . . . . . . Wheel . | . . . . . . Hover . | . . . . . . Flight . | . . . . . . Utility 6 | 1 2 . 1 . 2 Device 2 | . 2 . . . . Storage 2 | 1 . . 1 . . Processor 1 | . . . . . 1 Hackware . | . . . . . . Protection 1 | . . . . . 1 Artifact . | . . . . . . Weapon 6 | 2 1 1 . 2 . Energy Gun 3 | 1 . 1 . 1 . Energy Cannon 1 | . 1 . . . . Ballistic Gun 1 | 1 . . . . . Ballistic Cannon . | . . . . . . Launcher 1 | . . . . 1 . Special Weapon . | . . . . . . Impact Weapon . | . . . . . . Slashing Weapon . | . . . . . . Piercing Weapon . | . . . . . . Special Melee Weapon . | . . . . . . Unidentified Prototypes . | . . . . . . Parts Lost 12 | . . 1 . 2 9 Power 2 | . . . . 1 1 Propulsion 3 | . . . . . 3 Utility 3 | . . . . . 3 Weapon 4 | . . 1 . 1 2 Highest Loss Streak 9 | . . 1 . 2 9 To Critical Strikes . | . . . . . . Average Slot Usage (%) 90 | . 89 86 100 91 70 Engine 3 | . 10 . . . 7 Core 6 | . . 6 14 5 . Treads 24 | . 24 20 28 28 18 Device 12 | . 11 14 14 14 7 Storage 13 | . 14 14 14 14 9 Energy Gun 13 | . 14 14 14 10 6 Energy Cannon 8 | . 3 14 14 4 . Ballistic Gun 2 | . 10 . . . . Launcher 2 | . . . . 12 6 Naked Turns . | . . . . . . Heaviest Build 24 | 14 15 16 21 22 24 Greatest Support 60 | 40 40 40 40 40 60 Greatest Overweight (x) 7 | . . . . . 7 Average Overweight (x) . | . . . . . . Largest Inventory Capacity 10 | 8 8 8 10 10 10 Average Capacity 8 | 6 8 8 8 10 10 Most Carried 8 | 4 8 8 8 8 6 Average Carried 6 | 2 6 6 6 7 3 Final Capacity 10 | 8 8 8 10 10 10 Final Carried 8 | 4 8 6 8 7 3 Class Distribution -------------------- 100% | Mutant Dominant Class ---------------- Mutant | -10/Materials Mutant | -10/Mines Mutant | -10/Exiles Mutant | -9/Mines Mutant | -8/Materials Resources | -11 -10 -10 -10 -9 -8 ----------- Run | Yrd Mat Min Exi Min Mat Matter Collected 527 | 197 124 65 . 110 31 Remotely . | . . . . . . Salvage Created 466 | . 175 102 . 81 108 Parts 32 | . 16 3 . 4 9 Haulers Intercepted 1 | . 1 . . . . Recyclers Shooed . | . . . . . . Parts Field Recycled . | . . . . . . Retrieved Matter . | . . . . . . Parts Self-Destructed . | . . . . . . Prevented . | . . . . . . Kills | -11 -10 -10 -10 -9 -8 ------- Run | Yrd Mat Min Exi Min Mat Combat Hostiles Destroyed 17 | . 5 3 . 8 1 Guns 10 | . 5 2 . 2 1 Cannons 3 | . . 1 . 2 . AOE 4 | . . . . 4 . Classes Destroyed 7 | . 3 . . 2 2 Builder 1 | . . . . . 1 Hauler 1 | . 1 . . . . Watcher 1 | . . . . . 1 Swarmer 7 | . 3 1 . 3 . Grunt 5 | . 2 2 . . 1 Demolisher 1 | . . . . 1 . Assembled 4 | . . . . 4 . Best Kill Streak 5 | . 3 1 . 5 2 Combat Bots Only 5 | . 3 1 . 5 1 Max Kills in Single Turn 1 | . 1 1 . 1 1 Gunslinging . | . . . . . . Exploded 1 | . . . . 1 . Melee . | . . . . . . Uniques/NPCs Destroyed . | . . . . . . Combat | -11 -10 -10 -10 -9 -8 -------- Run | Yrd Mat Min Exi Min Mat Hostile Shots Fired 167 | . 27 20 . 19 101 Missed 41 | . 10 5 . 3 23 Damage Taken 1979 | . 168 219 . 320 1272 Core 709 | . 41 23 . 83 562 Absorbed by Shields . | . . . . . . Core Remaining (%) 70 | 100 . . . 41 . Volleys Fired 66 | . 18 11 . 14 23 Largest 2 | . 2 2 . 2 1 Hottest 110 | . 110 110 . 100 40 Shots Fired 107 | . 36 22 . 26 23 Gun 75 | . 35 11 . 6 23 Cannon 23 | . 1 11 . 11 . Launcher 9 | . . . . 9 . Special . | . . . . . . Kinetic 17 | . 17 . . . . Thermal 49 | . 19 19 . 11 . Explosive 9 | . . . . 9 . Electromagnetic 32 | . . 3 . 6 23 Robot Hit Streak 11 | . 4 5 . 6 11 Robot Miss Streak 4 | . 2 4 . 2 3 Penetration Max . | . . . . . . Secondary Targets . | . . . . . . Shots Hit Robots 61 | . 23 11 . 15 12 Core Hits 33 | . 10 5 . 11 7 Critical Kills . | . . . . . . Critical Parts Destroyed 1 | . 1 . . . . Critical Strikes 1 | . 1 . . . . Destroy 1 | . 1 . . . . Melee Attacks . | . . . . . . Impact . | . . . . . . Slashing . | . . . . . . Piercing . | . . . . . . Sneak Attacks . | . . . . . . Combat Hostiles . | . . . . . . Follow-up Attacks . | . . . . . . Damage Inflicted 1184 | . 298 178 . 458 250 Guns 588 | . 281 90 . 57 160 Cannons 192 | . 17 88 . 87 . Explosions 389 | . . . . 314 75 Melee . | . . . . . . Ramming 15 | . . . . . 15 Kinetic 169 | . 169 . . . . Thermal 442 | . 129 151 . 87 75 Explosive 314 | . . . . 314 . Electromagnetic 244 | . . 27 . 57 160 Impact . | . . . . . . Slashing . | . . . . . . Piercing . | . . . . . . Highest Corruption 2 | . . . . . 2 Average Corruption 1 | . . . . . 1 Corruption Purged . | . . . . . . Corruption Blocked . | . . . . . . Overload Shots . | . . . . . . Overflow Damage 9 | . . . . 9 . Projectiles 9 | . . . . 9 . Explosions . | . . . . . . Melee . | . . . . . . Knockbacks . | . . . . . . Impact . | . . . . . . Kinetic . | . . . . . . Secondary . | . . . . . . Self-Inflicted Damage 128 | . . . . 79 49 Shots 4 | . . . . 3 1 Rammed 16 | . . . . . 16 Targets Rammed 16 | . . . . . 16 Kicked . | . . . . . . Crushed . | . . . . . . Highest Temperature 87 | . 81 84 . 87 23 Average Temperature 28 | . 27 33 . 25 10 Received Heat Transfer 804 | . 54 111 . . 639 Siege Activations . | . . . . . . Robots Corrupted . | . . . . . . Combat Hostiles . | . . . . . . Parts Fried . | . . . . . . Impact Corruptions . | . . . . . . Robots Melted . | . . . . . . Combat Hostiles . | . . . . . . Parts Melted . | . . . . . . Heat Transferred 1025 | . 370 370 . 185 100 Parts Sabotaged . | . . . . . . Parts Stolen . | . . . . . . Parts Stripped . | . . . . . . Power Chain Reactions 2 | . . . . 1 1 Alert | -11 -10 -10 -10 -9 -8 ------- Run | Yrd Mat Min Exi Min Mat Peak Influence 149 | . 112 133 . 129 149 Initial 50 | . . 33 . . 50 Average 60 | . 51 47 . 112 83 Maximum Alert Level . | . . . . . . Low Security (%) 100 | 100 100 100 . 100 100 Level 1 . | . . . . . . Level 2 . | . . . . . . Level 3 . | . . . . . . Level 4 . | . . . . . . Level 5 . | . . . . . . High Security . | . . . . . . Max Security . | . . . . . . Squads Dispatched 3 | . 2 . . . 1 Investigation 2 | . 2 . . . . Extermination . | . . . . . . Reinforcement 1 | . . . . . 1 Assault . | . . . . . . Garrison . | . . . . . . Intercept . | . . . . . . Searches Triggered . | . . . . . . Construction Impeded . | . . . . . . Haulers Reinforced . | . . . . . . Active Scanning Responses . | . . . . . . Cargo Convoy Interrupts . | . . . . . . Stealth | -11 -10 -10 -10 -9 -8 --------- Run | Yrd Mat Min Exi Min Mat Distress Signals 3 | . 1 . . 1 1 Communications Jammed . | . . . . . . Distress Signals . | . . . . . . Times Spotted 32 | . 10 4 . 8 10 Peak Tracking Total 8 | . 4 3 . 3 8 Tactical Retreats 3 | . 1 1 . . 1 Traps | -11 -10 -10 -10 -9 -8 ------- Run | Yrd Mat Min Exi Min Mat Traps Triggered 1 | . 1 . . . . Indirectly . | . . . . . . Trap Hack Attempts . | . . . . . . Triggered . | . . . . . . Disarmed . | . . . . . . Reprogrammed . | . . . . . . Reused . | . . . . . . Traps Extracted . | . . . . . . Installed . | . . . . . . Triggered . | . . . . . . Machines | -11 -10 -10 -10 -9 -8 ---------- Run | Yrd Mat Min Exi Min Mat Machines Disabled . | . . . . . . Max in Single Turn . | . . . . . . Machines Repaired . | . . . . . . Machines Dismantled . | . . . . . . Machines Sabotaged . | . . . . . . Overloaded Fab Kills . | . . . . . . Hacking | -11 -10 -10 -10 -9 -8 --------- Run | Yrd Mat Min Exi Min Mat Machines Accessed 10 | . 4 . 5 1 . Terminals 4 | . 3 . . 1 . Fabricators . | . . . . . . Repair Stations . | . . . . . . Recycling Units 1 | . 1 . . . . Scanalyzers . | . . . . . . Garrison Access . | . . . . . . Total Hacks 68 | . 13 . 50 5 . Successful 57 | . 5 . 50 2 . Failed 11 | . 8 . . 3 . Catastrophic . | . . . . . . Database Lockouts . | . . . . . . Manual 16 | . 11 . 1 4 . Terminals 14 | . 9 . . 5 . Fabricators . | . . . . . . Repair Stations . | . . . . . . Recycling Units 4 | . 4 . . . . Scanalyzers . | . . . . . . Garrison Access . | . . . . . . Terminal Hacks 53 | . 1 . 50 2 . Record 49 | . . . 49 . . Level Access Points 1 | . . . . 1 . Recall Investigation 1 | . 1 . . . . Zone Layout 1 | . . . . 1 . Derelict Proto ID Bank 1 | . . . 1 . . Fabricator Hacks . | . . . . . . Repair Station Hacks . | . . . . . . Recycling Unit Hacks 1 | . 1 . . . . Report Inventory 1 | . 1 . . . . Scanalyzer . | . . . . . . Garrison Access Hacks . | . . . . . . Unauthorized Hacks 3 | . 3 . . . . Terminals 2 | . 2 . . . . Botnet 2 | . 2 . . . . Fabricators . | . . . . . . Repair Stations . | . . . . . . Recycling Units 1 | . 1 . . . . Reject 1 | . 1 . . . . Scanalyzers . | . . . . . . Garrison Access . | . . . . . . Data Cores Recovered . | . . . . . . Used . | . . . . . . Hacking Detections 5 | . 4 . . 1 . Full Trace Events 2 | . 2 . . . . Feedback Events . | . . . . . . Feedback Blocked . | . . . . . . Robot Schematics Acquired . | . . . . . . Robots Built . | . . . . . . Authchips . | . . . . . . Time . | . . . . . . Total Robot Build Rating . | . . . . . . Part Schematics Acquired . | . . . . . . Parts Built . | . . . . . . Authchips . | . . . . . . Time . | . . . . . . Total Part Build Rating . | . . . . . . Parts Repaired . | . . . . . . Time . | . . . . . . Parts Recycled . | . . . . . . Recycled Matter . | . . . . . . Retrieved Matter . | . . . . . . Retrieved Components . | . . . . . . Parts Scanalyzed . | . . . . . . Part Schematics Acquired . | . . . . . . Parts Damaged . | . . . . . . Bothacking | -11 -10 -10 -10 -9 -8 ------------ Run | Yrd Mat Min Exi Min Mat Used RIF Installer . | . . . . . . Robots Hacked . | . . . . . . Non-combat . | . . . . . . Combat . | . . . . . . Robot Hacks Applied . | . . . . . . Relay Couplers Released . | . . . . . . Fabnet Peak Effective % . | . . . . . . Robots Rewired . | . . . . . . Allies Hacked . | . . . . . . Hacks Repelled . | . . . . . . Allies | -11 -10 -10 -10 -9 -8 -------- Run | Yrd Mat Min Exi Min Mat Total Allies 1 | . . 1 . . . Largest Group 1 | . . 1 1 . . Highest-Rated Group 31 | . . 31 31 . . Highest-Rated Ally 31 | . . 31 31 . . Total Orders . | . . . . . . Ally Attacks . | . . . . . . Total Damage . | . . . . . . Kills . | . . . . . . Allies Corrupted . | . . . . . . Allies Melted . | . . . . . . Intel | -11 -10 -10 -10 -9 -8 ------- Run | Yrd Mat Min Exi Min Mat Robot Analysis Total . | . . . . . . Derelict Logs Recovered 1 | . . 1 . . . Drone Launches . | . . . . . . Drone Recoveries . | . . . . . . Exploration | -11 -10 -10 -10 -9 -8 ------------- Run | Yrd Mat Min Exi Min Mat Turns Passed 2337 | 114 593 504 670 269 187 Spaces Moved 1231 | 71 255 290 418 138 59 Core 20 | 10 . . . . 10 Treads 1211 | 61 255 290 418 138 49 Legs . | . . . . . . Wheels . | . . . . . . Hover . | . . . . . . Flight . | . . . . . . Fastest Speed 50 | 50 160 160 160 160 160 Average Speed 159 | 144 160 160 160 160 170 Slowest Speed 400 | 160 160 160 160 160 400 Overloaded Moves . | . . . . . . Propulsion Burnouts . | . . . . . . Robots Hopped . | . . . . . . Cave-ins Triggered . | . . . . . . Exploration Rate (%) 41 | 4 37 69 91 41 6 Regions Visited 5 Branch Regions 3 Pre-discovered Areas 1 | . . . 1 . . Known Exits Taken 1 | . . . . 1 . Unknown Exits Taken 4 | 1 1 1 1 . . Scrap Searched 1 | . . 1 . . . Spaces Dug . | . . . . . . Terrain Destroyed 59 | . . . . 53 6 Melee . | . . . . . . Projectile . | . . . . . . AOE 59 | . . . . 53 6 Terrain Rammed . | . . . . . . Walls Destroyed . | . . . . . . Machines Disabled . | . . . . . . Actions | -11 -10 -10 -10 -9 -8 --------- Run | Yrd Mat Min Exi Min Mat Total 1476 | 80 407 308 419 160 102 Wait 127 | . 120 . . 7 . Move 1226 | 70 254 289 417 137 59 Hop . | . . . . . . Pick Up 15 | 4 8 2 1 . . Fast Attach 7 | 6 1 . . . . Attach 10 | . 2 3 . 1 4 Detach 1 | . 1 . . . . Swap 4 | . . 2 1 1 . Drop 4 | . 3 1 . . . Fire 66 | . 18 11 . 14 23 Melee . | . . . . . . Ram 14 | . . . . . 14 Kick . | . . . . . . Crush 2 | . . . . . 2 Escape Stasis . | . . . . . . Rewire . | . . . . . . Trap . | . . . . . . Miscellaneous . | . . . . . . Route ------- -11/Scrapyard -10/Materials -10/Mines (discovered 2 exits: [*Mat] / *Exi) -10/Exiles -9/Mines (discovered 2 exits: *Mat x2) -8/Materials (discovered 1 exit: Fac) History --------- Turn | Location | Event 6 | -11/Scrapyard | Discovered new exit (range 16) 115 | -11/Scrapyard | Entered Materials 311 | -10/Materials | Build established: Mutant 651 | -10/Materials | Discovered new exit (range 8) 708 | -10/Materials | Entered Mines 907 | -10/Mines | Discovered new exit (range 7) 1112 | -10/Mines | Learned location of 1 exit from Materials 1147 | -10/Mines | Received a Mining Laser from a helpful Derelict 1203 | -10/Mines | Deemed a non-threat by the Exiles lab entrance 1204 | -10/Mines | Discovered new exit (range 5) 1212 | -10/Mines | Entered Exiles 1212 | -10/Exiles | Accompanied by 1 ally 1249 | -10/Exiles | Met 8R-AWN 1278 | -10/Exiles | Met EX-HEX 1324 | -10/Exiles | Met EX-BIN 1344 | -10/Exiles | Aligned with FarCom system 1345 | -10/Exiles | Given EX-Vault access code 1414 | -10/Exiles | Opened EX-Vault 1451 | -10/Exiles | Warned to stay clear of 0b10 Research branches 1562 | -10/Exiles | Met EX-DEC 1586 | -10/Exiles | Visited The Gauntlet 1770 | -10/Exiles | Learned location of Zion (-7) 1869 | -10/Exiles | Discovered new exit (range 10) 1882 | -10/Exiles | Entered Mines 1883 | -9/Mines | Assembled infested the area 1910 | -9/Mines | Identified exit to Materials 1954 | -9/Mines | Core integrity fell below 50% 2151 | -9/Mines | Entered Materials 2151 | -8/Materials | Evolved 4 slots: Propulsion x1, Utility x3 2152 | -8/Materials | Identified exit to Factory 2320 | -8/Materials | Core integrity fell below 50% 2328 | -8/Materials | Core integrity fell below 20% 2338 | -8/Materials | Destroyed by Y-45 Defender with Heavy Assault Rifle Last Messages --------------- 02295_ Broken Heat Sink destroyed. 02298_ Slammed into Y-45 Defender. 02298_ Destabilizing: System corrupted (+1). 02300_ Slammed into Y-45 Defender. 02301_ Lgt. Armor Plating destroyed. 02303_ Slammed into Y-45 Defender. 02304_ Critical hit (Burn: +37). 02305_ Slammed into Y-45 Defender. 02305_ Targeting Computer broken. 02305_ Destabilizing: Short circuit. 02307_ Slammed into Y-45 Defender. 02317_ Slammed into G-47 Trooper. 02318_ G-50 Soldier suffers critical hit (Burn). 02319_ Broken Targeting Computer destroyed. 02319_ Slammed into G-47 Trooper. 02321_ Critical hit (Burn: +37). 02323_ Slammed into G-47 Trooper. 02323_ Destabilizing: System corrupted (+1). 02323_ G-47 Trooper suffers critical hit (Burn). 02324_ Critical hit (Burn: +37). Map ----- +----------------------------------------------------+ | ?????????????????????????????????????????????????? | | ?????????????????????????????????????????????????? | | ?????????????????????????????????????????????????? | | ?????????????????????????????????????????????????? | | ?????????????????????????????????????????????????? | | ?????????????????????????????????????????????????? | | ?????????????????????????????????????????????????? | | ?????????????????????????????????????????????????? | | ?????????????????????????????????????????????????? | | ?????????????????????????????????????????????????? | | ?????????????????????????????????????????????????? | | ?????????????????????????????????????????????????? | | ?????????????????????????????????????????????????? | | ?????????????????????????????????????????????????? | | ???????????????????????????#######???????????????? | | ???????????????????????????# #???????????????? | | ???????????????????????????# #???????????????? | | ???????????????????????????# #?????? ??????? | | ?????????????????????"""???# %% ####### #?????? | | ????????????????????""""" ###%%%"# # #?????? | | ????????????????????""""%%+ %%% # # #?????? | | ????????????????# ###%%%!" # #?????? | | ????????????????# ! ?????##%g # # #?????? | | ?????????????????##????##????##% # # +?????? | | ?????????????????## #T###### # # #?????? | | ?????????? ! @ gg # # #?????? | | ?????????? u Y # # #?????? | | ?????????????###### ######## # # #?????? | | ??????????????????##+#????????# # # #?????? | | ??????????????????????????????# + # #?????? | | ??????????????????????????????# # # #?????? | | ?????????????????????????????## ####### #?????? | | ?????????????????????????????# ! ###### #?????? | | ?????????????????????????????# #?????? | | ?????????????????????????????# ##########?????? | | ?????????????????????????????# #??????????????? | | ?????????????????????????????######??????????????? | | ?????????????????????????????????????????????????? | | ?????????????????????????????????????????????????? | | ?????????????????????????????????????????????????? | | ?????????????????????????????????????????????????? | | ?????????????????????????????????????????????????? | | ?????????????????????????????????????????????????? | | ?????????????????????????????????????????????????? | | ?????????????????????????????????????????????????? | | ?????????????????????????????????????????????????? | | ?????????????????????????????????????????????????? | | ?????????????????????????????????????????????????? | | ?????????????????????????????????????????????????? | | | +----------------------------------------------------+ Best States ------------- Heat Dissipation 41 Energy Generation 14 Energy Capacity 250 Matter Stores 300 Matter Capacity 300 Sight Range 16 Terrain Scan Density 10 Armor Coverage 150 Evasion (%) 40 Targeting Accuracy 5 Recoil Reduction 3 Item Schematics ----------------- None Robot Schematics ------------------ None Fabricated ------------ Nothing Alien Tech Used ----------------- None Achievements -------------- None Challenges ------------ None Game ------ Seed ChromaticSignalThruster Manual? 0 Play Time 00:17:05 Cumulative 20.8 hours Start 2024.07.24 @ 00:15:25 End 2024.07.24 @ 00:30:42 Sessions 1 Manual Loads 0 Difficulty Rogue Special Mode None Game No. 68 Rogue 68 Adventurer 0 Explorer 0 Win Type - Total 0 Types 0/0/0/0/0/0/0/0/0 Lore% 27 Gallery% 25 Achievement% 25 Wizard Run 0 Options --------- Layout 1 ASCII 0 Keyboard 0 Movement Arrows Keybinds 0 Fullscreen 1 Font 28/Dina Map View 50x43 Zoom Use 0% Tactical HUD 1 Map Filters NONE Filters NONE Steam X RUN: d6b3ffe2-4899-4e7c-ac85-d85baf9b8771